bitfinex/quotes_SOLUSD_20230110
["timestamp","ask_amount","ask_price","bid_price","bid_amount"]
[1673331823964,20.0,16.279,16.261,20.0]
[1673331824292,46.09,16.278,16.261,20.0]
[1673331824713,46.09,16.278,16.26,36.62190381]
[1673331825032,46.08,16.282,16.261,20.0]
[1673331825235,20.0,16.281,16.263,20.0]
[1673331825435,46.09,16.28,16.264,20.0]
[1673331825855,46.08,16.281,16.265,17.0]
[1673331826180,46.08,16.282,16.266,40.0]
[1673331826392,46.08,16.282,16.267,17.0]
[1673331826587,46.08,16.282,16.268,20.0]
[1673331826796,20.0,16.281,16.269,17.0]
[1673331827232,20.0,16.279,16.269,17.0]
[1673331827644,46.09,16.28,16.269,17.0]
[1673331828183,46.09,16.28,16.268,20.0]
[1673331828393,46.09,16.28,16.264,20.0]
[1673331828710,20.0,16.279,16.264,20.0]
[1673331829447,46.09,16.28,16.264,20.0]
[1673331829640,46.09,16.28,16.266,20.0]
[1673331829851,66.08,16.281,16.266,40.0]
[1673331830062,46.08,16.281,16.267,20.0]
[1673331830273,20.0,16.281,16.267,20.0]
[1673331830482,46.09,16.28,16.267,20.0]
[1673331830706,46.09,16.28,16.268,17.0]
[1673331831020,20.0,16.279,16.269,20.0]
[1673331831228,46.09,16.278,16.269,20.0]
[1673331831756,20.0,16.277,16.264,4.822]
[1673331833005,20.0,16.275,16.264,4.822]
[1673331833322,176.5399,16.281,16.264,10.87190381]
[1673331833646,130.4599,16.281,16.266,20.0]
[1673331833858,46.09,16.28,16.266,20.0]
[1673331834388,46.09,16.28,16.267,17.0]
[1673331834573,46.09,16.28,16.268,20.0]
[1673331834779,46.09,16.28,16.269,17.0]
[1673331836061,46.07,16.285,16.27,25.66]
[1673331836267,46.06,16.289,16.272,20.0]
[1673331836482,164.7867,16.289,16.273,20.0]
[1673331836690,20.0,16.288,16.275,20.0]
[1673331836912,20.0,16.288,16.276,17.0]
[1673331837119,25.94,16.3,16.28,25.75]
[1673331837318,118.7267,16.297,16.281,17.0]
[1673331837529,20.0,16.296,16.281,17.0]
[1673331837746,46.04,16.295,16.282,10.87190381]
[1673331837956,46.04,16.295,16.283,17.0]
[1673331838396,46.04,16.295,16.284,10.87190381]
[1673331838588,20.0,16.294,16.285,17.0]
[1673331839009,20.0,16.294,16.284,10.87190381]
[1673331839335,20.0,16.292,16.281,10.87190381]
[1673331839740,20.0,16.292,16.282,17.0]
[1673331839947,20.0,16.294,16.282,17.0]
[1673331840182,46.05,16.293,16.283,10.87190381]
[1673331840388,46.04,16.295,16.284,17.0]
[1673331840788,46.04,16.295,16.284,27.87190381]
[1673331841021,20.0,16.294,16.284,27.87190381]
[1673331841232,46.05,16.293,16.284,27.87190381]
[1673331841422,46.04,16.295,16.284,27.87190381]
[1673331841632,20.0,16.294,16.284,27.87190381]
[1673331842072,20.0,16.294,16.284,17.0]
[1673331842390,20.0,16.294,16.282,10.87190381]
[1673331842605,20.0,16.294,16.284,10.87190381]
[1673331843633,46.04,16.295,16.284,10.87190381]
[1673331843844,20.0,16.296,16.285,17.0]
[1673331844177,20.0,16.296,16.286,10.87190381]
[1673331844491,20.0,16.296,16.287,17.0]
[1673331844915,20.0,16.296,16.287,27.87190381]
[1673331845756,46.04,16.297,16.288,20.0]
[1673331845943,46.03,16.301,16.288,20.0]
[1673331846152,20.0,16.3,16.282,20.0]
[1673331846380,46.03,16.299,16.282,20.0]
[1673331846595,20.0,16.298,16.283,20.0]
[1673331846909,46.04,16.297,16.284,20.0]
[1673331847119,20.0,16.296,16.284,20.0]
[1673331847734,20.0,16.296,16.282,20.0]
[1673331848173,20.0,16.296,16.283,20.0]
[1673331848484,46.04,16.297,16.285,20.0]
[1673331848685,109.5304,16.299,16.286,20.0]
[1673331848890,20.0,16.298,16.287,17.0]
[1673331849104,20.0,16.298,16.288,20.0]
[1673331849322,155.5604,16.299,16.288,20.0]
[1673331849526,109.5304,16.299,16.29,25.66]
[1673331849731,109.5304,16.299,16.291,37.0]
[1673331849947,46.02,16.303,16.291,115.2741308]
[1673331850158,46.02,16.303,16.292,49.81823266]
[1673331850368,46.02,16.303,16.293,17.0]
[1673331850578,20.0,16.302,16.293,17.0]
[1673331850899,20.0,16.302,16.292,49.81823266]
[1673331851421,46.02,16.303,16.292,49.81823266]
[1673331851640,46.02,16.303,16.293,17.0]
[1673331851841,66.7223369,16.304,16.293,17.0]
[1673331852039,46.7223369,16.304,16.293,27.87190381]
[1673331852457,20.0,16.299,16.293,49.81823266]
[1673331852672,46.03,16.298,16.281,20.0]
[1673331852903,20.0,16.297,16.282,20.0]
[1673331853106,20.0,16.295,16.282,30.87190381]
[1673331853513,46.02,16.302,16.284,20.0]
[1673331853728,46.02,16.302,16.285,20.0]
[1673331853946,20.0,16.301,16.286,20.0]
[1673331854155,20.0,16.301,16.286,30.2490234]
[1673331854365,46.02,16.302,16.288,20.0]
[1673331854579,46.02,16.302,16.289,17.0]
[1673331854792,46.02,16.302,16.289,27.2490234]
[1673331855109,46.02,16.302,16.29,10.2490234]
[1673331855300,66.7223369,16.304,16.291,17.0]
[1673331855539,20.7023369,16.304,16.291,17.0]
[1673331855727,20.7023369,16.304,16.292,10.2490234]
[1673331855959,20.7023369,16.304,16.293,17.0]
[1673331856146,20.0,16.302,16.293,17.0]
[1673331858372,20.0,16.302,16.292,10.2490234]
[1673331858591,20.0,16.302,16.286,20.0]
[1673331858775,46.03,16.301,16.288,10.2490234]
[1673331859112,20.0,16.3,16.289,20.0]
[1673331859634,46.03,16.301,16.29,20.0]
[1673331859849,46.02,16.303,16.291,17.0]
[1673331860161,46.02,16.303,16.292,20.0]
[1673331860475,46.02,16.303,16.293,17.0]
[1673331862790,46.02,16.303,16.294,10.2490234]
[1673331862999,20.7023369,16.304,16.295,17.0]
[1673331863217,66.7223369,16.304,16.295,17.0]
[1673331863732,66.7223369,16.304,16.294,10.2490234]
[1673331863921,66.7223369,16.304,16.29,45.66]
[1673331864136,66.7223369,16.304,16.291,27.2490234]
[1673331864371,66.7223369,16.304,16.292,20.0]
[1673331864683,66.7223369,16.304,16.293,17.0]
[1673331864869,66.7223369,16.304,16.291,10.2490234]
[1673331865828,66.7223369,16.304,16.29,20.0]
[1673331866155,46.7223369,16.304,16.29,20.0]
[1673331866344,46.7223369,16.304,16.291,27.2490234]
[1673331866970,46.7223369,16.304,16.292,30.2490234]
[1673331867186,0.7023369,16.304,16.293,17.0]
[1673331867411,46.02,16.303,16.293,17.0]
[1673331867627,20.0,16.303,16.293,17.0]
[1673331867937,46.7223369,16.304,16.293,17.0]
[1673331868134,0.7023369,16.304,16.293,27.2490234]
[1673331868881,20.7023369,16.304,16.293,27.2490234]
[1673331869824,0.7023369,16.304,16.293,27.2490234]
[1673331870139,20.7023369,16.304,16.293,27.2490234]
[1673331870561,0.7023369,16.304,16.294,20.0]
[1673331870881,0.7023369,16.304,16.295,17.0]
[1673331871071,0.7023369,16.304,16.294,17.0]
[1673331871713,0.7023369,16.304,16.295,10.2490234]
[1673331872040,0.7023369,16.304,16.296,17.0]
[1673331872246,0.7023369,16.304,16.294,17.0]
[1673331872555,0.7023369,16.304,16.29,25.71]
[1673331872765,0.7023369,16.304,16.289,20.0]
[1673331872986,20.0,16.302,16.289,10.2490234]
[1673331873194,20.0,16.302,16.287,20.0]
[1673331873380,46.03,16.301,16.287,20.0]
[1673331873586,46.03,16.301,16.288,10.2490234]
[1673331873801,20.0,16.302,16.289,20.0]
[1673331874248,20.7023369,16.304,16.29,10.2490234]
[1673331874436,20.7023369,16.304,16.291,17.0]
[1673331876653,20.7023369,16.304,16.289,20.0]
[1673331876867,20.7023369,16.304,16.287,20.0]
[1673331877180,46.02,16.303,16.289,10.2490234]
[1673331877390,20.0,16.302,16.289,10.2490234]
[1673331878131,20.0,16.302,16.29,17.0]
[1673331878440,20.0,16.302,16.29,27.2490234]
[1673331879168,20.0,16.302,16.29,17.0]
[1673331880015,20.0,16.302,16.288,10.2490234]
[1673331880232,46.03,16.301,16.289,20.0]
[1673331880423,20.0,16.302,16.289,20.0]
[1673331880633,20.0,16.302,16.289,30.2490234]
[1673331880867,20.0,16.302,16.289,20.0]
[1673331881058,20.0,16.302,16.286,20.0]
[1673331881267,20.0,16.302,16.287,20.0]
[1673331882747,20.0,16.302,16.288,10.2490234]
[1673331882936,20.7023369,16.304,16.287,20.0]
[1673331883153,20.7023369,16.304,16.288,10.2490234]
[1673331883364,20.7023369,16.304,16.289,20.0]
[1673331883802,20.7023369,16.304,16.29,10.2490234]
[1673331883992,46.02,16.303,16.29,10.2490234]
[1673331884204,20.7023369,16.304,16.29,10.2490234]
[1673331884434,20.7023369,16.304,16.291,17.0]
[1673331885150,20.7023369,16.304,16.289,20.0]
[1673331885482,20.7023369,16.304,16.287,20.0]
[1673331885712,20.0,16.302,16.289,10.2490234]
[1673331886025,46.02,16.303,16.289,10.2490234]
[1673331886248,20.7023369,16.304,16.289,10.2490234]
[1673331886443,0.7023369,16.304,16.289,10.2490234]
[1673331886649,20.7023369,16.304,16.29,20.0]
[1673331886855,20.7023369,16.304,16.291,17.0]
[1673331887062,20.7023369,16.304,16.291,27.2490234]
[1673331890026,20.7023369,16.304,16.291,10.2490234]
[1673331890344,20.0,16.302,16.288,10.2490234]
[1673331890536,20.0,16.302,16.289,20.0]
[1673331891389,20.0,16.302,16.29,17.0]
[1673331894959,25.67,16.3,16.275,20.0]
[1673331895269,25.67,16.3,16.272,111.2476248]
[1673331895270,298.74388207,16.299,16.277,20.0]
[1673331895487,3.94836304,16.297,16.276,10.2490234]
[1673331895688,45.54,16.296,16.277,10.2490234]
[1673331895902,20.94836304,16.295,16.273,20.0]
[1673331896108,46.05,16.294,16.273,20.0]
[1673331896320,37.0,16.293,16.272,89.1832234]
[1673331896520,25.64,16.29,16.272,89.1832234]
[1673331896862,46.06,16.289,16.272,89.1832234]
[1673331897078,20.0,16.288,16.272,89.1832234]
[1673331897277,20.0,16.288,16.26,128.44]
[1673331897495,20.0,16.286,16.264,20.0]
[1673331897691,177.716,16.285,16.264,20.0]
[1673331898023,25.64,16.28,16.257,20.0]
[1673331898226,20.0,16.278,16.257,20.0]
[1673331898427,46.09,16.279,16.261,10.2490234]
[1673331898635,46.09,16.279,16.26,25.47]
[1673331898847,37.0,16.278,16.26,25.47]
[1673331899069,46.09,16.277,16.26,25.47]
[1673331899275,46.09,16.279,16.261,20.0]
[1673331899493,46.09,16.279,16.263,20.0]
[1673331900446,46.09,16.279,16.264,17.0]
[1673331900754,46.09,16.279,16.261,20.0]
[1673331901159,20.0,16.278,16.262,20.0]
[1673331901475,46.09,16.277,16.262,20.0]
[1673331901682,46.09,16.278,16.263,10.2490234]
[1673331901891,46.09,16.278,16.264,20.0]
[1673331902320,46.09,16.278,16.264,30.2490234]
[1673331902537,46.09,16.279,16.264,30.2490234]
[1673331902726,17.0,16.278,16.264,30.2490234]
[1673331902940,46.09,16.277,16.264,30.2490234]
[1673331903362,46.09,16.278,16.264,30.2490234]
[1673331904100,113.2276,16.281,16.264,30.2490234]
[1673331904101,46.09,16.279,16.265,20.0]
[1673331904310,113.2276,16.281,16.267,20.0]
[1673331904643,113.2276,16.281,16.268,30.2490234]
[1673331904644,46.09,16.28,16.268,30.2490234]
[1673331905263,46.09,16.28,16.26,20.0]
[1673331905264,23.28082627,16.279,16.26,20.0]
[1673331905475,23.63988023,16.277,16.26,20.0]
[1673331905677,3.63988023,16.275,16.26,20.0]
[1673331905888,3.63988023,16.273,16.26,20.0]
[1673331906096,3.63988023,16.271,16.26,20.0]
[1673331906323,3.63988023,16.275,16.26,20.0]
[1673331906536,3.63988023,16.273,16.26,20.0]
[1673331906723,3.63988023,16.271,16.26,12.5]
[1673331906938,46.11,16.272,16.26,12.5]
[1673331906939,3.63988023,16.274,16.26,12.5]
[1673331907149,3.63988023,16.272,16.258,30.2490234]
[1673331907591,49.74988023,16.272,16.258,30.2490234]
[1673331909156,29.41988023,16.27,16.259,20.0]
[1673331909368,3.63988023,16.273,16.259,20.0]
[1673331909576,3.63988023,16.276,16.26,9.66273026]
[1673331909788,3.63988023,16.277,16.261,20.0]
[1673331910198,119.5024,16.278,16.262,9.66273026]
[1673331910406,0.90480811,16.277,16.264,20.0]
[1673331910612,119.5024,16.278,16.265,17.0]
[1673331910827,119.5024,16.278,16.266,20.0]
[1673331911053,119.5024,16.278,16.267,17.0]
[1673331911271,119.5024,16.278,16.268,20.0]
[1673331914533,20.0,16.277,16.268,20.0]
[1673331915155,119.5024,16.278,16.268,20.0]
[1673331915682,20.0,16.277,16.268,20.0]
[1673331916214,20.0,16.277,16.265,20.0]
[1673331916525,20.0,16.277,16.266,17.0]
[1673331916722,20.0,16.277,16.267,20.0]
[1673331922099,20.0,16.275,16.255,20.0]
[1673331922281,2.01190592,16.273,16.255,20.0]
[1673331922497,2.01190592,16.271,16.255,20.0]
[1673331922723,2.01190592,16.272,16.256,20.0]
[1673331923471,2.01190592,16.272,16.258,17.0]
[1673331923472,115.73930592,16.272,16.258,17.0]
[1673331923876,20.0,16.271,16.258,17.0]
[1673331924083,2.01190592,16.27,16.258,17.0]
[1673331924520,22.01190592,16.273,16.259,20.0]
[1673331924730,22.01190592,16.273,16.26,17.0]
[1673331925139,22.01190592,16.273,16.259,20.0]
[1673331926089,25.57,16.27,16.25,57.89655811]
[1673331926296,49.79800189,16.269,16.246,119.7175]
[1673331926504,3.67800189,16.269,16.25,25.75]
[1673331926721,46.12,16.268,16.251,40.0]
[1673331927032,3.67800189,16.267,16.251,40.0]
[1673331927236,3.67800189,16.268,16.251,49.66273026]
[1673331927461,3.67800189,16.268,16.251,40.0]
[1673331928285,3.67800189,16.268,16.251,49.66273026]
[1673331928500,3.67800189,16.268,16.251,40.0]
[1673331929457,3.67800189,16.268,16.251,20.0]
[1673331929675,3.67800189,16.266,16.251,20.0]
[1673331929985,3.67800189,16.263,16.249,20.0]
[1673331930192,46.14,16.262,16.249,20.0]
[1673331930405,3.67800189,16.261,16.249,20.0]
[1673331930931,23.67800189,16.263,16.248,25.0]
[1673331931147,138.17070189,16.263,16.248,25.0]
[1673331931338,17.0,16.262,16.248,25.0]
[1673331931551,3.67800189,16.261,16.248,25.0]
[1673331931755,128.65,16.26,16.23,128.79]
[1673331931965,67.08836304,16.259,16.231,115.3798]
[1673331932174,86.08897985,16.259,16.231,125.04253026]
[1673331932378,86.08897985,16.259,16.232,9.66273026]
[1673331932590,19.00061681,16.258,16.232,9.66273026]
[1673331932914,20.0,16.256,16.233,20.0]
[1673331933124,67.10836304,16.255,16.233,20.0]
[1673331933438,3.94836304,16.252,16.234,9.66273026]
[1673331933857,3.94836304,16.252,16.234,9.16273026]
[1673331934182,3.94836304,16.252,16.235,9.66273026]
[1673331934412,3.94836304,16.252,16.233,20.0]
[1673331934413,3.94836304,16.252,16.236,20.0]
[1673331934626,50.10836304,16.253,16.237,17.0]
[1673331934943,50.10836304,16.253,16.238,20.0]
[1673331935358,50.10836304,16.253,16.237,20.0]
[1673331935781,50.10836304,16.253,16.238,20.0]
[1673331936003,3.94836304,16.253,16.238,20.0]
[1673331936315,50.10836304,16.254,16.239,9.63418764]
[1673331936527,50.10836304,16.254,16.238,20.0]
[1673331936837,50.10836304,16.254,16.238,29.63418764]
[1673331937051,3.94836304,16.252,16.239,20.0]
[1673331937370,20.94836304,16.252,16.237,20.0]
[1673331937582,20.0,16.251,16.236,20.0]
[1673331937772,46.69836304,16.25,16.236,20.0]
[1673331938097,29.69836304,16.25,16.236,29.63418764]
[1673331938315,3.94836304,16.25,16.237,9.3544507]
[1673331938515,3.94836304,16.252,16.238,20.0]
[1673331938838,3.94836304,16.252,16.239,29.3544507]
[1673331939239,3.94836304,16.252,16.24,9.3544507]
[1673331939659,23.94836304,16.252,16.24,9.3544507]
[1673331939871,23.94836304,16.252,16.238,20.0]
[1673331940205,23.94836304,16.252,16.239,20.0]
[1673331940399,23.94836304,16.252,16.239,9.3544507]
[1673331940605,23.94836304,16.252,16.24,20.0]
[1673331940933,3.94836304,16.252,16.236,20.0]
[1673331941151,3.94836304,16.252,16.239,9.3544507]
[1673331941360,3.94836304,16.252,16.24,20.0]
[1673331941772,23.94836304,16.252,16.24,20.0]
[1673331941974,23.94836304,16.252,16.24,29.3544507]
[1673331942520,17.0,16.251,16.24,20.0]
[1673331942831,23.94836304,16.25,16.237,9.3544507]
[1673331943046,23.94836304,16.25,16.238,20.0]
[1673331943255,3.94836304,16.251,16.238,20.0]
[1673331943680,3.94836304,16.251,16.238,9.3544507]
[1673331943877,3.94836304,16.251,16.239,20.0]
[1673331944087,3.94836304,16.251,16.24,17.0]
[1673331944303,3.94836304,16.252,16.239,29.3544507]
[1673331944505,3.94836304,16.252,16.24,26.3544507]
[1673331944710,3.94836304,16.252,16.242,20.0]
[1673331944923,23.94836304,16.252,16.24,9.3544507]
[1673331945252,23.94836304,16.252,16.239,20.0]
[1673331945442,23.94836304,16.252,16.239,29.3544507]
[1673331945888,17.0,16.251,16.239,29.3544507]
[1673331946087,3.94836304,16.25,16.239,29.3544507]
[1673331946622,3.94836304,16.25,16.239,20.0]
[1673331946805,49.59836304,16.25,16.234,9.3544507]
[1673331947142,49.59836304,16.25,16.235,20.0]
[1673331947143,3.94836304,16.248,16.235,20.0]
[1673331947330,3.94836304,16.249,16.235,20.0]
[1673331947542,3.94836304,16.251,16.237,20.0]
[1673331947880,3.94836304,16.251,16.238,20.0]
[1673331948499,20.0,16.249,16.238,20.0]
[1673331948715,3.94836304,16.248,16.237,20.0]
[1673331949436,20.94836304,16.248,16.237,20.0]
[1673331950509,20.94836304,16.248,16.234,20.0]
[1673331950698,20.94836304,16.248,16.235,17.0]
[1673331950911,20.94836304,16.248,16.236,20.0]
[1673331951768,3.94836304,16.249,16.237,20.0]
[1673331951991,3.94836304,16.251,16.237,20.0]
[1673331952179,3.94836304,16.251,16.237,29.3544507]
[1673331952375,3.94836304,16.252,16.238,37.0]
[1673331952590,23.94836304,16.252,16.239,20.0]
[1673331952922,3.94836304,16.252,16.239,20.0]
[1673331953541,20.94836304,16.252,16.239,20.0]
[1673331953953,20.94836304,16.252,16.24,20.0]
[1673331955433,20.0,16.251,16.24,20.0]
[1673331955647,20.94836304,16.25,16.239,20.0]
[1673331957422,3.94836304,16.251,16.239,20.0]
[1673331957629,20.94836304,16.251,16.239,20.0]
[1673331958487,25.73,16.25,16.231,20.0]
[1673331958696,3.94836304,16.249,16.238,9.3544507]
[1673331958910,20.94836304,16.249,16.238,9.3544507]
[1673331959118,3.94836304,16.249,16.238,9.3544507]
[1673331959436,3.94836304,16.251,16.238,9.3544507]
[1673331959632,3.94836304,16.251,16.239,20.0]
[1673331961013,25.85,16.25,16.239,20.0]
[1673331961219,25.85,16.25,16.227,149.07760726]
[1673331961220,20.0,16.248,16.228,20.0]
[1673331961431,17.0,16.247,16.228,20.0]
[1673331961641,20.0,16.245,16.228,29.3544507]
[1673331961954,136.8965,16.245,16.228,29.3544507]
[1673331962143,17.0,16.244,16.228,29.3544507]
[1673331962355,17.0,16.244,16.228,20.0]
[1673331962567,46.19,16.243,16.228,20.0]
[1673331962779,17.0,16.242,16.228,20.0]
[1673331963515,17.0,16.242,16.229,20.0]
[1673331963516,63.19,16.242,16.229,20.0]
[1673331963740,63.19,16.242,16.228,20.0]
[1673331963961,20.0,16.241,16.225,20.0]
[1673331964265,20.0,16.239,16.221,29.3544507]
[1673331964455,20.0,16.239,16.223,5.7023369]
[1673331964672,17.0,16.238,16.223,5.7023369]
[1673331964993,20.0,16.237,16.223,5.7023369]
[1673331965192,63.21,16.236,16.223,5.7023369]
[1673331965405,20.0,16.235,16.223,5.7023369]
[1673331965618,65.84661351,16.234,16.223,5.7023369]
[1673331966160,19.62661351,16.234,16.223,5.7023369]
[1673331967301,46.2,16.24,16.225,20.0]
[1673331967522,112.513,16.243,16.226,17.0]
[1673331967722,46.19,16.242,16.226,17.0]
[1673331967930,20.0,16.241,16.226,17.0]
[1673331968144,20.0,16.241,16.227,20.0]
[1673331968367,20.0,16.241,16.228,17.0]
[1673331968577,20.0,16.241,16.227,20.0]
[1673331968982,20.0,16.239,16.227,19.5]
[1673331969397,20.0,16.237,16.227,19.5]
[1673331969613,20.0,16.237,16.223,5.7023369]
[1673331969946,17.0,16.236,16.223,5.7023369]
[1673331970256,17.0,16.236,16.224,20.0]
[1673331970863,20.0,16.237,16.224,20.0]
[1673331972158,17.0,16.236,16.224,20.0]
[1673331972369,20.0,16.237,16.224,20.0]
[1673331972692,66.2,16.239,16.225,17.0]
[1673331972883,17.0,16.238,16.226,20.0]
[1673331973095,17.0,16.238,16.224,20.0]
[1673331973309,20.0,16.237,16.224,20.0]
[1673331973515,66.21,16.237,16.224,20.0]
[1673331973843,46.21,16.237,16.224,20.0]
[1673331974060,17.0,16.238,16.224,20.0]
[1673331976791,20.0,16.237,16.224,20.0]
[1673331977616,20.0,16.237,16.223,5.7023369]
[1673331977830,1.0,16.234,16.223,5.7023369]
[1673331978163,46.22,16.233,16.223,5.7023369]
[1673331978470,37.0,16.232,16.223,5.7023369]
[1673331978782,46.22,16.231,16.223,5.7023369]
[1673331979836,17.0,16.23,16.223,5.7023369]
[1673331981616,20.0,16.229,16.223,5.7023369]
[1673331984232,20.0,16.227,16.223,5.7023369]
[1673331984457,21.88401132,16.227,16.223,5.7023369]
[1673331985091,20.0,16.226,16.21,45.83]
[1673331985303,2.4479981,16.225,16.213,20.0]
[1673331985620,2.4479981,16.225,16.214,20.0]
[1673331985808,2.4479981,16.225,16.21,45.83]
[1673331986021,48.76483915,16.224,16.21,20.0]
[1673331986255,20.0,16.223,16.21,20.0]
[1673331986437,63.25,16.222,16.21,20.0]
[1673331986860,46.25,16.222,16.21,20.0]
[1673331987071,48.76483915,16.224,16.21,29.3544507]
[1673331987297,2.52483915,16.224,16.21,55.2044507]
[1673331987490,2.52483915,16.224,16.21,45.85]
[1673331987706,2.52483915,16.224,16.212,20.0]
[1673331987919,22.52483915,16.224,16.212,20.0]
[1673331988548,20.0,16.224,16.212,20.0]
[1673331988757,21.07819126,16.224,16.212,20.0]
[1673331988987,1.07819126,16.224,16.212,20.0]
[1673331989183,21.07819126,16.224,16.212,20.0]
[1673331990146,17.0,16.223,16.212,20.0]
[1673331992346,1.25894383,16.224,16.212,20.0]
[1673331992557,21.25894383,16.224,16.212,20.0]
[1673331992871,21.25894383,16.224,16.213,17.0]
[1673331993091,21.25894383,16.224,16.209,20.0]
[1673331993404,46.25,16.223,16.21,20.0]
[1673331995713,20.0,16.222,16.21,20.0]
[1673331996026,17.0,16.221,16.21,20.0]
[1673331996225,63.25,16.221,16.207,20.0]
[1673331996857,63.25,16.221,16.208,20.0]
[1673331997061,63.25,16.221,16.209,20.0]
[1673331999178,46.25,16.221,16.209,20.0]
[1673331999399,0.91166068,16.224,16.21,62.61]
[1673331999700,114.7609,16.227,16.211,29.3544507]
[1673331999901,114.7609,16.227,16.212,17.0]
[1673332000113,46.24,16.226,16.213,20.0]
[1673332000863,17.0,16.225,16.213,20.0]
[1673332001073,46.24,16.224,16.211,20.0]
[1673332001388,17.0,16.223,16.211,20.0]
[1673332001577,17.0,16.223,16.209,20.0]
[1673332001787,20.0,16.221,16.207,20.0]
[1673332002033,63.26,16.22,16.206,20.0]
[1673332002249,17.0,16.22,16.206,20.0]
[1673332002674,46.26,16.219,16.206,20.0]
[1673332002871,46.26,16.22,16.206,20.0]
[1673332003296,17.0,16.219,16.207,20.0]
[1673332003934,17.0,16.219,16.208,20.0]
[1673332004258,17.0,16.219,16.209,20.0]
[1673332004464,46.25,16.223,16.209,20.0]
[1673332006231,17.0,16.222,16.209,20.0]
[1673332006448,46.25,16.221,16.209,20.0]
[1673332007385,17.0,16.22,16.209,20.0]
[1673332008254,46.25,16.223,16.21,20.0]
[1673332008573,17.0,16.222,16.21,20.0]
[1673332009292,46.25,16.221,16.21,20.0]
[1673332009483,17.0,16.22,16.21,20.0]
[1673332010323,46.25,16.223,16.21,20.0]
[1673332010744,46.24,16.224,16.21,20.0]
[1673332011814,17.0,16.223,16.21,20.0]
[1673332014451,135.23811681,16.225,16.212,20.0]
[1673332014766,116.2375,16.225,16.212,20.0]
[1673332014957,116.2375,16.225,16.213,26.3544507]
[1673332015166,46.22,16.233,16.213,67.33320064]
[1673332015380,118.3268,16.232,16.214,17.0]
[1673332015605,118.3268,16.232,16.213,9.3544507]
[1673332015820,20.0,16.231,16.213,9.3544507]
[1673332016021,20.0,16.231,16.215,9.3544507]
[1673332016222,118.3268,16.232,16.215,9.3544507]
[1673332016873,46.21,16.235,16.215,9.3544507]
[1673332017395,17.0,16.234,16.216,37.0]
[1673332017610,46.22,16.233,16.217,20.0]
[1673332017794,46.22,16.233,16.219,20.0]
[1673332018215,46.22,16.233,16.221,20.0]
[1673332018846,46.21,16.235,16.221,20.0]
[1673332019910,17.0,16.234,16.219,20.0]
[1673332020122,46.22,16.233,16.22,20.0]
[1673332020324,17.0,16.232,16.22,20.0]
[1673332020764,17.0,16.233,16.22,20.0]
[1673332020972,46.22,16.232,16.22,20.0]
[1673332021389,46.22,16.232,16.221,20.0]
[1673332022425,46.22,16.232,16.22,20.0]
[1673332022756,17.0,16.231,16.22,20.0]
[1673332022969,20.0,16.229,16.211,20.0]